fUSD/lending_fUSD_20250606
["ID","MTS","AMOUNT","RATE_DAILY","PERIOD"]
[364644103,1749175854611,-748.056027,0.000302,7]
[364644104,1749175854620,-151.0,0.000302,7]
[364644105,1749175854630,-532.513804,0.000302,7]
[364644106,1749175854640,-532.513804,0.000302,7]
[364644107,1749175854650,-151.0,0.000302,7]
[364644108,1749175854660,-151.0,0.000302,7]
[364644109,1749175854670,-187.931992,0.000302,7]
[364644110,1749175854681,-760.577893,0.000302,7]
[364644111,1749175854692,-760.577893,0.000302,7]
[364644112,1749175854703,-151.0,0.000302,7]
[364644113,1749175854712,-151.0,0.000302,7]
[364644114,1749175854722,-151.0,0.000302,7]
[364644115,1749175854732,-151.0,0.000302,7]
[364644116,1749175854741,-206.785994,0.000302,7]
[364644117,1749175854750,-206.785994,0.000302,7]
[364644118,1749175854760,-151.0,0.000302,2]
[364644119,1749175854770,-151.0,0.000302,2]
[364644120,1749175854779,-151.0,0.000302,2]
[364644121,1749175854789,-151.0,0.000302,2]
[364644122,1749175854800,-151.0,0.000302,2]
[364644123,1749175854810,-151.0,0.000302,2]
[364644124,1749175854819,-151.0,0.000302,2]
[364644125,1749175854829,-151.0,0.000302,2]
[364644126,1749175854838,-151.0,0.000302,2]
[364644127,1749175854848,-151.0,0.000302,2]
[364644128,1749175854858,-151.0,0.000302,2]
[364644129,1749175854874,-151.0,0.000302,2]
[364644130,1749175854884,-192.266225,0.000302,2]
[364644131,1749175854893,-349.027176,0.000302,7]
[364644132,1749175854903,-349.027176,0.000302,7]
[364644133,1749175854914,-265.860366,0.000302,7]
[364644134,1749175854925,-158.841649,0.000302,7]
[364644135,1749175854935,-265.860366,0.000302,7]
[364644136,1749175854944,-158.841649,0.000302,7]
[364644137,1749175854953,-151.0,0.000302,7]
[364644138,1749175854962,-151.0,0.000302,7]
[364644139,1749175854971,-494.547597,0.000302,7]
[364644140,1749175854980,-151.0,0.000302,7]
[364644141,1749175854990,-151.0,0.000302,7]
[364644142,1749175854999,-368.003349,0.000302,7]
[364644143,1749175855008,-368.003349,0.000302,7]
[364644144,1749175855017,-187.144878,0.000302,7]
[364644145,1749175855027,-187.144878,0.000302,7]
[364644146,1749175855036,-151.499736,0.000302,7]
[364644147,1749175855045,-151.0,0.000302,7]
[364644148,1749175855055,-151.0,0.000302,7]
[364644149,1749175855064,-151.0,0.000302,7]
[364644150,1749175855073,-153.108827,0.000302,7]
[364644151,1749175855083,-151.0,0.000302,7]
[364644152,1749175855092,-284.224494,0.000302,7]
[364644153,1749175855103,-284.224494,0.000302,7]
[364644154,1749175855112,-151.0,0.000302,7]
[364644155,1749175855122,-151.0,0.000302,7]
[364644156,1749175855132,-154.288431,0.000302,7]
[364644157,1749175855142,-151.0,0.000302,7]
[364644158,1749175855151,-154.288431,0.000302,7]
[364644159,1749175855161,-153.04425,0.000302,7]
[364644160,1749175855171,-151.0,0.000302,7]
[364644161,1749175855181,-2258.08626,0.000302,7]
[364644162,1749175855190,-158.156702,0.000302,7]
[364644163,1749175855200,-214.159275,0.000302,7]
[364644164,1749175855210,-158.156702,0.000302,7]
[364644165,1749175855220,-2258.08626,0.000302,7]
[364644166,1749175855229,-214.159275,0.000302,7]
[364644167,1749175855239,-151.0,0.000302,7]
[364644168,1749175855248,-151.0,0.000302,7]
[364644169,1749175855258,-151.0,0.000302,7]
[364644170,1749175855268,-151.0,0.000302,7]
[364644171,1749175855278,-151.0,0.000302,7]
[364644172,1749175855288,-930.486682,0.000302,7]
[364644173,1749175855297,-151.0,0.000302,7]
[364644174,1749175855307,-930.486682,0.000302,7]
[364644175,1749175855321,-151.0,0.000302,7]
[364644176,1749175855331,-151.0,0.000302,7]
[364644177,1749175855340,-151.0,0.000302,7]
[364644178,1749175855351,-1407.824945,0.000302,7]
[364644179,1749175855361,-1407.824945,0.000302,7]
[364644180,1749175855371,-152.054154,0.000302,7]
[364644181,1749175855382,-152.054154,0.000302,7]
[364644182,1749175855394,-151.0,0.000302,7]
[364644183,1749175855404,-151.0,0.000302,7]
[364644184,1749175855415,-151.0,0.000302,7]
[364644185,1749175855425,-355.964584,0.000302,7]
[364644186,1749175855435,-355.964584,0.000302,7]
[364644187,1749175855444,-151.0,0.000302,7]
[364644188,1749175855454,-265.127388,0.000302,7]
[364644189,1749175855464,-265.127388,0.000302,7]
[364644190,1749175855474,-151.0,0.000302,7]
[364644191,1749175855483,-155.828158,0.000302,7]
[364644192,1749175855493,-5713.735496,0.000302,7]
[364644193,1749175855503,-151.0,0.000302,7]
[364644194,1749175855513,-5713.735496,0.000302,7]
[364644195,1749175855523,-151.0,0.000302,7]
[364644196,1749175855533,-151.0,0.000302,7]
[364644197,1749175855542,-151.0,0.000302,7]
[364644198,1749175855552,-540.614179,0.000302,7]
[364644199,1749175855562,-540.614179,0.000302,7]
[364644200,1749175855571,-1513.341587,0.000302,7]
[364644201,1749175855581,-1513.341587,0.000302,7]
[364644202,1749175855591,-151.0,0.000302,7]
[364644203,1749175855601,-151.0,0.000302,7]
[364644204,1749175855611,-151.0,0.000302,7]
[364644205,1749175855621,-1336.85,0.000302,2]
[364644206,1749175855630,-151.0,0.000302,7]
[364644207,1749175855640,-166.778531,0.000302,7]
[364644208,1749175855650,-166.778531,0.000302,7]
[364644209,1749175855659,-150.0,0.00030202,2]
[364644210,1749175855669,-150.0,0.00030202,2]
[364644211,1749175855679,-520.32878788,0.00030217,2]
[364644212,1749175855691,-500.0,0.00030219,7]
[364644213,1749175855700,-250.6854111,0.00030219,7]
[364644214,1749175855709,-150.0,0.00030219,7]
[364644215,1749175855720,-150.0,0.00030219,7]
[364644216,1749175855730,-622.36047457,0.00030219,7]
[364644217,1749175855740,-500.0,0.00030219,7]
[364644218,1749175855750,-500.0,0.00030219,7]
[364644219,1749175855760,-500.0,0.00030219,7]
[364644220,1749175855769,-500.0,0.00030219,7]
[364644221,1749175855779,-150.0,0.00030219,7]
[364644222,1749175855789,-528.0,0.00030219,7]
[364644223,1749175855799,-500.0,0.00030219,7]
[364644224,1749175855810,-500.0,0.00030219,7]
[364644225,1749175855820,-200.82433775,0.00030219,7]
[364644226,1749175855830,-500.0,0.00030219,7]
[364644227,1749175855839,-500.0,0.00030219,7]
[364644228,1749175855849,-500.0,0.00030219,7]
[364644229,1749175855860,-500.0,0.00030219,7]
[364644230,1749175855870,-500.0,0.00030219,7]
[364644231,1749175855879,-500.0,0.00030219,7]
[364644232,1749175855889,-500.0,0.00030219,7]
[364644233,1749175855899,-1850.0,0.00030219,7]
[364644234,1749175855910,-150.0,0.00030219,7]
[364644235,1749175855919,-500.0,0.00030219,7]
[364644236,1749175855929,-500.0,0.00030219,7]
[364644237,1749175855938,-500.0,0.00030219,7]
[364644238,1749175855948,-590.0,0.00030219,7]
[364644239,1749175855958,-500.0,0.00030219,2]
[364644240,1749175855968,-500.0,0.00030219,7]
[364644241,1749175855978,-500.0,0.00030219,7]
[364644242,1749175855987,-150.0,0.00030219,7]
[364644243,1749175855997,-500.0,0.00030219,2]
[364644244,1749175856007,-2464.0,0.00030219,7]
[364644245,1749175856017,-500.0,0.00030219,7]
[364644246,1749175856027,-150.0,0.00030219,7]
[364644247,1749175856037,-150.0,0.00030219,7]
[364644248,1749175856046,-469.09,0.00030219,2]
[364644249,1749175856056,-816.66,0.00030219,2]
[364644250,1749175856065,-453.45830047,0.00030228,2]
[364644251,1749175856075,-1080.95575718,0.00030232,2]
[364644252,1749175856085,-211.0,0.0003024,30]
[364644253,1749175856095,-210.0,0.0003024,2]
[364644254,1749175856104,-206.28072487,0.00030246,7]
[364644255,1749175856114,-150.0,0.00030246,7]
[364644256,1749175856124,-150.0,0.00030246,7]
[364644257,1749175856134,-500.0,0.00030246,7]
[364644258,1749175856143,-500.0,0.00030246,7]
[364644259,1749175856152,-500.0,0.00030246,7]
[364644260,1749175856162,-500.0,0.00030246,7]
[364644261,1749175856172,-150.0,0.00030246,7]
[364644262,1749175856182,-528.0,0.00030246,7]
[364644263,1749175856192,-500.0,0.00030246,7]
[364644264,1749175856202,-500.0,0.00030246,7]
[364644265,1749175856212,-500.0,0.00030246,7]
[364644266,1749175856221,-500.0,0.00030246,7]
[364644267,1749175856231,-500.0,0.00030246,7]
[364644268,1749175856241,-500.0,0.00030246,7]
[364644269,1749175856251,-500.0,0.00030246,7]
[364644270,1749175856261,-241.4215504,0.00030246,7]
[364644271,1749175856270,-500.0,0.00030246,7]
[364644272,1749175856279,-1850.0,0.00030246,7]
[364644273,1749175856289,-202.37281181,0.00030246,7]
[364644274,1749175856299,-335.674917,0.00030246,7]
[364644275,1749175856308,-493.31722225,0.00030246,7]
[364644276,1749175856322,-500.0,0.00030246,7]
[364644277,1749175856332,-590.0,0.00030246,7]
[364644278,1749175856341,-500.0,0.00030246,2]
[364644279,1749175856351,-500.0,0.00030246,7]
[364644280,1749175856361,-500.0,0.00030246,7]
[364644281,1749175856371,-202.95022155,0.00030246,7]
[364644282,1749175856380,-500.0,0.00030246,2]
[364644283,1749175856390,-2464.0,0.00030246,7]
[364644284,1749175856400,-500.0,0.00030246,7]
[364644285,1749175856410,-157.1431915,0.00030246,7]
[364644286,1749175856419,-206.93065172,0.00030246,7]
[364644287,1749175856429,-3549.45317198,0.00030273,2]
[364644288,1749175856439,-196.43125565,0.00030274,7]
[364644289,1749175856449,-214.89034803,0.00030274,7]
[364644290,1749175856459,-500.0,0.00030274,7]
[364644291,1749175856471,-500.0,0.00030274,7]
[364644292,1749175856481,-586.07300312,0.00030274,7]
[364644293,1749175856490,-500.0,0.00030274,7]
[364644294,1749175856500,-253.20959988,0.00030274,7]
[364644295,1749175856510,-528.0,0.00030274,7]
[364644296,1749175856521,-500.0,0.00030274,7]
[364644297,1749175856531,-304.34173649,0.00030274,7]
[364644298,1749175856541,-500.0,0.00030274,7]
[364644299,1749175856551,-500.0,0.00030274,7]
[364644300,1749175856561,-500.0,0.00030274,7]
[364644301,1749175856572,-289.65917592,0.00030274,7]
[364644302,1749175856582,-500.0,0.00030274,7]
[364644303,1749175856591,-500.0,0.00030274,7]
[364644304,1749175856602,-1850.0,0.00030274,7]
[364644305,1749175856612,-500.0,0.00030274,7]
[364644306,1749175856622,-590.0,0.00030274,7]
[364644307,1749175856632,-153.52001343,0.00030274,2]
[364644308,1749175856642,-500.0,0.00030274,7]
[364644309,1749175856652,-500.0,0.00030274,7]
[364644310,1749175856663,-500.0,0.00030274,2]
[364644311,1749175856673,-2464.0,0.00030274,7]
[364644312,1749175856683,-500.0,0.00030274,7]
[364644313,1749175856693,-520.32878788,0.00030274,2]
[364644314,1749175856704,-1080.95575718,0.00030279,2]
[364644315,1749175856714,-200.18345998,0.00030279,22]
[364644316,1749175856724,-150.0,0.00030293,2]
[364644317,1749175856734,-1165.53,0.000303,2]
[364644318,1749175856744,-1165.53,0.000303,2]
[364644319,1749175856754,-1165.53,0.000303,2]
[364644320,1749175856765,-1743.79,0.000303,2]
[364644321,1749175856775,-500.0,0.00030301,7]
[364644322,1749175856785,-261.51976516,0.00030301,7]
[364644323,1749175856795,-500.0,0.00030301,7]
[364644324,1749175856805,-528.0,0.00030301,7]
[364644325,1749175856815,-500.0,0.00030301,7]
[364644326,1749175856825,-500.0,0.00030301,7]
[364644327,1749175856835,-500.0,0.00030301,7]
[364644328,1749175856845,-501.16496896,0.00030301,7]
[364644329,1749175856855,-500.0,0.00030301,7]
[364644330,1749175856865,-500.0,0.00030301,7]
[364644331,1749175856874,-1850.0,0.00030301,7]
[364644332,1749175856884,-500.0,0.00030301,7]
[364644333,1749175856894,-590.0,0.00030301,7]
[364644334,1749175856904,-502.85040679,0.00030301,7]
[364644335,1749175856915,-500.0,0.00030301,2]
[364644336,1749175856925,-2464.0,0.00030301,7]
[364644337,1749175856935,-500.0,0.00030301,7]
[364644338,1749175856945,-164.0,0.00030301,2]
[364644339,1749175856955,-1080.95575718,0.00030325,2]
[364644340,1749175856966,-669.26835067,0.00030327,10]
[364644341,1749175856976,-654.41,0.00030327,7]
[364644342,1749175856987,-654.41,0.00030327,7]
[364644343,1749175856997,-654.41,0.00030327,7]
[364644344,1749175857007,-500.0,0.00030327,7]
[364644345,1749175857017,-500.0,0.00030327,7]
[364644346,1749175857027,-500.0,0.00030327,7]
[364644347,1749175857037,-151.0,0.00030328,7]
[364644348,1749175857047,-151.0,0.00030328,7]
[364644349,1749175857057,-151.0,0.00030328,7]
[364644350,1749175857068,-151.0,0.00030328,7]
[364644351,1749175857078,-151.0,0.00030328,7]
[364644352,1749175857088,-151.0,0.00030328,7]
[364644353,1749175857098,-151.0,0.00030328,7]
[364644354,1749175857109,-151.0,0.00030328,7]
[364644355,1749175857119,-153.092882,0.00030328,7]
[364644356,1749175857129,-151.0,0.00030328,7]
[364644357,1749175857139,-151.0,0.00030328,7]
[364644358,1749175857149,-151.0,0.00030328,7]
[364644359,1749175857160,-203.652477,0.00030328,7]
[364644360,1749175857170,-203.652477,0.00030328,7]
[364644361,1749175857180,-157.040667,0.00030328,7]
[364644362,1749175857190,-151.0,0.00030328,7]
[364644363,1749175857200,-152.452877,0.00030328,7]
[364644364,1749175857210,-151.0,0.00030328,7]
[364644365,1749175857220,-480.0,0.00030328,7]
[364644366,1749175857230,-151.0,0.00030328,7]
[364644367,1749175857239,-151.0,0.00030328,7]
[364644368,1749175857249,-151.0,0.00030328,7]
[364644369,1749175857259,-151.0,0.00030328,7]
[364644370,1749175857269,-151.0,0.00030328,7]
[364644371,1749175857279,-151.0,0.00030328,7]
[364644372,1749175857290,-151.0,0.00030328,7]
[364644373,1749175857301,-151.0,0.00030328,7]
[364644374,1749175857316,-279.765778,0.00030328,7]
[364644375,1749175857332,-1183.827025,0.00030328,7]
[364644376,1749175857342,-151.0,0.00030328,7]
[364644377,1749175857352,-151.0,0.00030328,7]
[364644378,1749175857361,-1183.827025,0.00030328,7]
[364644379,1749175857371,-151.0,0.00030328,7]
[364644380,1749175857381,-151.0,0.00030328,7]
[364644381,1749175857391,-151.0,0.00030328,7]
[364644382,1749175857401,-671.496429,0.00030328,7]
[364644383,1749175857412,-671.496429,0.00030328,7]
[364644384,1749175857421,-671.496429,0.00030328,7]
[364644385,1749175857431,-151.0,0.00030328,7]
[364644386,1749175857441,-671.496429,0.00030328,7]
[364644387,1749175857451,-151.0,0.00030328,7]
[364644388,1749175857461,-151.0,0.00030328,7]
[364644389,1749175857732,-151.0,0.00030328,7]
[364644390,1749175857743,-151.0,0.00030328,7]
[364644391,1749175857752,-155.941845,0.00030328,7]
[364644392,1749175857762,-151.0,0.00030328,7]
[364644393,1749175857772,-151.0,0.00030328,7]
[364644394,1749175857781,-221.015779,0.00030328,7]
[364644395,1749175857791,-221.015779,0.00030328,7]
[364644396,1749175857800,-221.015779,0.00030328,7]
[364644397,1749175857809,-221.015779,0.00030328,7]
[364644398,1749175857818,-151.0,0.00030328,7]
[364644399,1749175857828,-151.0,0.00030328,7]
[364644400,1749175857837,-151.0,0.00030328,7]
[364644401,1749175857847,-151.0,0.00030328,7]
[364644402,1749175857857,-153.85329,0.00030328,7]
[364644403,1749175857866,-151.0,0.00030328,7]
[364644404,1749175857876,-151.0,0.00030328,7]
[364644405,1749175857885,-151.0,0.00030328,7]
[364644406,1749175857895,-151.0,0.00030328,7]
[364644407,1749175857904,-151.0,0.00030328,7]
[364644408,1749175857914,-151.0,0.00030328,7]
[364644409,1749175857923,-181.209144,0.00030328,7]
[364644410,1749175857933,-181.209144,0.00030328,7]
[364644411,1749175857942,-151.391138,0.00030328,7]
[364644412,1749175857952,-151.391138,0.00030328,7]
[364644413,1749175857962,-151.391138,0.00030328,7]
[364644414,1749175857972,-151.391138,0.00030328,7]
[364644415,1749175857981,-151.0,0.00030328,7]
[364644416,1749175857991,-437.365916,0.00030328,7]
[364644417,1749175858002,-437.365916,0.00030328,7]
[364644418,1749175858012,-437.365916,0.00030328,7]
[364644419,1749175858022,-437.365916,0.00030328,7]
[364644420,1749175858032,-151.0,0.00030328,7]
[364644421,1749175858042,-157.246815,0.00030328,7]
[364644422,1749175858051,-906.18466,0.00030328,7]
[364644423,1749175858062,-906.18466,0.00030328,7]
[364644424,1749175858071,-151.0,0.00030328,7]
[364644425,1749175858081,-154.309329,0.00030328,7]
[364644426,1749175858091,-151.0,0.00030328,7]
[364644427,1749175858101,-151.0,0.00030328,7]
[364644428,1749175858111,-151.0,0.00030328,7]
[364644429,1749175858120,-151.0,0.00030328,7]
[364644430,1749175858130,-151.0,0.00030328,7]
[364644431,1749175858139,-151.0,0.00030328,7]
[364644432,1749175858150,-151.0,0.00030328,7]
[364644433,1749175858163,-151.118879,0.00030328,7]
[364644434,1749175858173,-151.0,0.00030328,7]
[364644435,1749175858182,-151.0,0.00030328,7]
[364644436,1749175858192,-151.0,0.00030328,7]
[364644437,1749175858202,-152.68808,0.00030328,7]
[364644438,1749175858212,-152.238814,0.00030328,7]
[364644439,1749175858222,-151.0,0.00030328,7]
[364644440,1749175858232,-285.445935,0.00030328,7]
[364644441,1749175858242,-151.0,0.00030328,7]
[364644442,1749175858252,-151.0,0.00030328,7]
[364644443,1749175858261,-164.460398,0.00030328,7]
[364644444,1749175858270,-331.228082,0.00030328,7]
[364644445,1749175858280,-331.228082,0.00030328,7]
[364644446,1749175858289,-234.045886,0.00030328,7]
[364644447,1749175858299,-234.045886,0.00030328,7]
[364644448,1749175858308,-234.045886,0.00030328,7]
[364644449,1749175858321,-234.045886,0.00030328,7]
[364644450,1749175858330,-151.0,0.00030328,7]
[364644451,1749175858339,-151.0,0.00030328,7]
[364644452,1749175858348,-151.0,0.00030328,7]
[364644453,1749175858359,-151.0,0.00030328,7]
[364644454,1749175858369,-151.0,0.00030328,7]
[364644455,1749175858378,-151.0,0.00030328,7]
[364644456,1749175858387,-151.0,0.00030328,7]
[364644457,1749175858399,-151.0,0.00030328,7]
[364644458,1749175858409,-151.0,0.00030328,7]
[364644459,1749175858419,-151.0,0.00030328,7]
[364644460,1749175858428,-151.0,0.00030328,7]
[364644461,1749175858437,-151.0,0.00030328,7]
[364644462,1749175858446,-151.0,0.00030328,7]
[364644463,1749175858455,-151.0,0.00030328,7]
[364644464,1749175858465,-151.0,0.00030328,7]
[364644465,1749175858475,-151.0,0.00030328,7]
[364644466,1749175858485,-151.0,0.00030328,7]
[364644467,1749175858494,-151.0,0.00030328,7]
[364644468,1749175858504,-172.249599,0.00030328,7]
[364644469,1749175858514,-172.249599,0.00030328,7]
[364644470,1749175858524,-151.0,0.00030328,7]
[364644471,1749175858534,-1067.679141,0.00030328,7]
[364644472,1749175858543,-151.0,0.00030328,7]
[364644473,1749175858553,-172.249599,0.00030328,7]
[364644474,1749175858563,-172.249599,0.00030328,7]
[364644475,1749175858573,-1067.679141,0.00030328,7]
[364644476,1749175858583,-1067.679141,0.00030328,7]
[364644477,1749175858593,-484.46453,0.00030328,7]
[364644478,1749175858603,-151.0,0.00030328,7]
[364644479,1749175858612,-151.0,0.00030328,7]
[364644480,1749175858622,-484.46453,0.00030328,7]
[364644481,1749175858631,-480.0,0.00030328,7]
[364644482,1749175858642,-151.0,0.00030328,7]
[364644483,1749175858651,-151.0,0.00030328,7]
[364644484,1749175858660,-748.056027,0.00030328,7]
[364644485,1749175858670,-748.056027,0.00030328,7]
[364644486,1749175858680,-748.056027,0.00030328,7]
[364644487,1749175858689,-748.056027,0.00030328,7]
[364644488,1749175858699,-151.0,0.00030328,7]
[364644489,1749175858709,-151.0,0.00030328,7]
[364644490,1749175858719,-532.513804,0.00030328,7]
[364644491,1749175858729,-532.513804,0.00030328,7]
[364644492,1749175858738,-532.513804,0.00030328,7]
[364644493,1749175858747,-532.513804,0.00030328,7]
[364644494,1749175858759,-151.0,0.00030328,7]
[364644495,1749175858768,-151.0,0.00030328,7]
[364644496,1749175858778,-151.0,0.00030328,7]
[364644497,1749175858788,-151.0,0.00030328,7]
[364644498,1749175858798,-760.577893,0.00030328,7]
[364644499,1749175858807,-760.577893,0.00030328,7]
[364644500,1749175858817,-760.577893,0.00030328,7]
[364644501,1749175858826,-760.577893,0.00030328,7]
[364644502,1749175858836,-480.0,0.00030328,7]
[364644503,1749175858845,-151.0,0.00030328,7]
[364644504,1749175858855,-151.0,0.00030328,7]
[364644505,1749175858864,-151.0,0.00030328,7]
[364644506,1749175858874,-151.0,0.00030328,7]
[364644507,1749175858883,-282.97661412,0.00030328,7]
[364644508,1749175858893,-480.0,0.00030328,7]
[364644509,1749175858902,-485.30459681,0.00030328,7]
[364644510,1749175858912,-480.0,0.00030328,7]
[364644511,1749175858922,-866.58,0.00030328,7]
[364644512,1749175858932,-480.0,0.00030328,7]
[364644513,1749175858941,-151.0,0.00030328,7]
[364644514,1749175858951,-151.0,0.00030328,7]
[364644515,1749175858960,-185.7570599,0.00030328,7]
[364644516,1749175858969,-301.3664513,0.00030328,7]
[364644517,1749175858979,-151.0,0.00030328,7]
[364644518,1749175858988,-151.0,0.00030328,7]
[364644519,1749175858997,-206.785994,0.00030328,7]
[364644520,1749175859007,-206.785994,0.00030328,7]
[364644521,1749175859016,-206.785994,0.00030328,7]
[364644522,1749175859025,-206.785994,0.00030328,7]
[364644523,1749175859035,-480.0,0.00030328,7]
[364644524,1749175859044,-480.0,0.00030328,7]
[364644525,1749175859054,-480.0,0.00030328,7]
[364644526,1749175859064,-627.115345,0.00030328,7]
[364644527,1749175859075,-480.0,0.00030328,7]
[364644528,1749175859084,-480.0,0.00030328,2]
[364644529,1749175859093,-542.89148129,0.00030328,7]
[364644530,1749175859103,-498.86195999,0.00030328,7]
[364644531,1749175859114,-498.36593938,0.00030328,7]
[364644532,1749175859124,-480.0,0.00030328,7]
[364644533,1749175859134,-492.18338987,0.00030328,7]
[364644534,1749175859143,-349.027176,0.00030328,7]
[364644535,1749175859154,-499.56877977,0.00030328,7]
[364644536,1749175859163,-349.027176,0.00030328,7]
[364644537,1749175859173,-480.0,0.00030328,7]
[364644538,1749175859183,-349.027176,0.00030328,7]
[364644539,1749175859192,-480.0,0.00030328,7]
[364644540,1749175859202,-349.027176,0.00030328,7]
[364644541,1749175859212,-480.0,0.00030328,7]
[364644542,1749175859221,-480.0,0.00030328,7]
[364644543,1749175859231,-265.860366,0.00030328,7]
[364644544,1749175859240,-480.0,0.00030328,7]
[364644545,1749175859250,-265.860366,0.00030328,7]
[364644546,1749175859259,-158.841649,0.00030328,7]
[364644547,1749175859269,-158.841649,0.00030328,7]
[364644548,1749175859278,-265.860366,0.00030328,7]
[364644549,1749175859287,-265.860366,0.00030328,7]
[364644550,1749175859297,-158.841649,0.00030328,7]
[364644551,1749175859307,-158.841649,0.00030328,7]
[364644552,1749175859319,-480.0,0.00030328,7]
[364644553,1749175859329,-480.0,0.00030328,7]
[364644554,1749175859338,-151.0,0.00030328,7]
[364644555,1749175859348,-151.0,0.00030328,7]
[364644556,1749175859358,-151.0,0.00030328,7]
[364644557,1749175859368,-151.0,0.00030328,7]
[364644558,1749175859377,-494.547597,0.00030328,7]
[364644559,1749175859387,-494.547597,0.00030328,7]
[364644560,1749175859398,-365.5181928,0.00030328,2]
[364644561,1749175859408,-486.19607168,0.00030328,7]
[364644562,1749175859418,-496.88001142,0.00030328,7]
[364644563,1749175859428,-481.98353852,0.00030328,7]
[364644564,1749175859438,-721.95,0.00030328,7]
[364644565,1749175859448,-160.506943,0.00030328,7]
[364644566,1749175859458,-312.28744927,0.00030328,7]
[364644567,1749175859467,-493.12598187,0.00030328,7]
[364644568,1749175859477,-480.0,0.00030328,7]
[364644569,1749175859486,-368.003349,0.00030328,7]
[364644570,1749175859496,-222.94490228,0.00030328,7]
[364644571,1749175860469,-1270.64,0.00030164,7]
[364644572,1749175860478,-550.16,0.00030164,2]
[364644573,1749175860488,-145.05844672,0.00030328,7]
[364644574,1749175860498,-480.0,0.00030328,7]
[364644575,1749175860508,-481.11153105,0.00030328,7]
[364644576,1749175860517,-480.0,0.00030328,7]
[364644577,1749175860527,-368.003349,0.00030328,7]
[364644578,1749175860536,-368.003349,0.00030328,7]
[364644579,1749175860545,-480.0,0.00030328,7]
[364644580,1749175860555,-187.144878,0.00030328,7]
[364644581,1749175860565,-187.144878,0.00030328,7]
[364644582,1749175860574,-480.0,0.00030328,7]
[364644583,1749175860583,-1283.47,0.00030328,7]
[364644584,1749175860593,-187.144878,0.00030328,7]
[364644585,1749175860603,-187.144878,0.00030328,7]
[364644586,1749175860612,-153.76039401,0.00030328,7]
[364644587,1749175860621,-205.51216894,0.00030328,7]
[364644588,1749175860630,-151.0,0.00030328,7]
[364644589,1749175860640,-151.0,0.00030328,7]
[364644590,1749175860650,-151.0,0.00030328,7]
[364644591,1749175860660,-151.0,0.00030328,7]
[364644592,1749175860669,-480.0,0.00030328,7]
[364644593,1749175860678,-492.99835358,0.00030328,7]
[364644594,1749175860687,-492.88907552,0.00030328,7]
[364644595,1749175860697,-498.96868279,0.00030328,7]
[364644596,1749175860705,-1000.0,0.00030328,15]
[364644597,1749175860715,-151.0,0.00030328,7]
[364644598,1749175860724,-151.0,0.00030328,7]
[364644599,1749175860733,-495.58732347,0.00030328,7]
[364644600,1749175860742,-505.45095177,0.00030328,7]
[364644601,1749175860752,-495.3708375,0.00030328,7]
[364644602,1749175860762,-480.0,0.00030328,7]